fUSD/lending_fUSD_20240831
["ID","MTS","AMOUNT","RATE_DAILY","PERIOD"]
[336716812,1725062402709,165.13037954,0.00010873,2]
[336716813,1725062440970,660.99,0.00010039,2]
[336716814,1725062464665,334.24,0.00010039,2]
[336716815,1725062464883,334.24,0.00010042,2]
[336716816,1725062465115,334.24,0.00010044,2]
[336716817,1725062465328,334.24,0.00010047,2]
[336716818,1725062465533,334.24,0.0001005,2]
[336716819,1725062465956,334.24,0.00010052,2]
[336716820,1725062466188,334.24,0.00010055,2]
[336716821,1725062466613,334.24,0.00010058,2]
[336716822,1725062467010,334.24,0.0001006,2]
[336716823,1725062467222,334.24,0.00010063,2]
[336716824,1725062467462,334.24,0.00010065,2]
[336716825,1725062467686,334.24,0.00010068,2]
[336716826,1725062467922,334.24,0.00010071,2]
[336716827,1725062468139,334.24,0.00010073,2]
[336716828,1725062468373,334.24,0.00010076,2]
[336716829,1725062468579,334.24,0.00010079,2]
[336716830,1725062468784,334.24,0.00010081,2]
[336716831,1725062468978,334.24,0.00010084,2]
[336716832,1725062469198,334.24,0.00010086,2]
[336716833,1725062469630,334.24,0.00010089,2]
[336716834,1725062475555,1907.09256916,0.00010873,2]
[336716835,1725062480661,680.76705013,0.0001045,2]
[336716836,1725062550418,332.09,0.00010049,2]
[336716837,1725062557352,250.0,0.00010049,2]
[336716838,1725062605737,174.12842965,0.000109,2]
[336716839,1725062614643,1271.3950461,0.00010873,2]
[336716840,1725062622886,200.0,0.00010959,2]
[336716841,1725062631430,169.89742313,0.00010862,2]
[336716842,1725062665471,1698.72197958,0.00010899,2]
[336716843,1725062679194,850.47,0.00010114,2]
[336716845,1725062751074,847.5966974,0.00010873,2]
[336716846,1725062757938,283.5,8.219e-05,2]
[336716847,1725062758166,283.5,0.00010477,2]
[336716849,1725062831543,672.06,0.00010044,2]
[336716850,1725062831805,150.0,9.863e-05,2]
[336716851,1725062887028,565.06446494,0.00010873,2]
[336716853,1725062909674,500.0,0.00024,120]
[336716854,1725062910734,163.81,0.00010959,2]
[336716859,1725062965286,-300.0,0.00010961,2]
[336716860,1725062965317,-150.0,0.00010961,2]
[336716861,1725062965348,-623.0,0.00010962,2]
[336716862,1725062965379,-1259.0,0.00010962,2]
[336716863,1725062965408,-1019.362,0.00010962,2]
[336716864,1725062965437,-150.0,0.00010962,2]
[336716865,1725062965467,-557.0,0.00010962,2]
[336716866,1725062965497,-207.80626355,0.00010962,2]
[336716867,1725062965532,-602.19373645,0.00010962,2]
[336716868,1725062965563,-552.0,0.00010962,2]
[336716869,1725062965593,-1898.0,0.00010962,2]
[336716870,1725062965623,-248.0,0.00010962,2]
[336716871,1725062965653,-804.0,0.00010962,2]
[336716872,1725062965683,-161.9745271,0.00010962,2]
[336716873,1725062965722,-3160.0254729,0.00010962,2]
[336716874,1725062965752,-1106.14279065,0.00010962,2]
[336716875,1725062965793,-32.85720935,0.00010962,2]
[336716876,1725062965825,-151.23,0.00010963,2]
[336716877,1725062965857,-151.23,0.00010963,2]
[336716878,1725062965889,-151.23,0.00010963,2]
[336716879,1725062965919,-151.23,0.00010963,2]
[336716880,1725062966764,-151.23,0.00010963,2]
[336716881,1725062966838,-151.23,0.00010963,2]
[336716882,1725062966869,-151.23,0.00010963,2]
[336716883,1725062966898,-151.23,0.00010963,2]
[336716884,1725062966926,-151.23,0.00010963,2]
[336716885,1725062966952,-151.23,0.00010963,2]
[336716886,1725062966979,-151.23,0.00010963,2]
[336716887,1725062967007,-151.23,0.00010963,2]
[336716888,1725062967035,-120.13013438,0.00010963,2]
[336716890,1725063024861,376.70964328,0.00010873,2]
[336716891,1725063028565,3000.0,0.00024,120]
[336716909,1725063032120,-159.02,0.00010963,2]
[336716911,1725063032129,-159.02,0.00010963,2]
[336716913,1725063032139,-22.24165674,0.00010963,2]
[336716915,1725063032150,-136.77834326,0.00010963,2]
[336716917,1725063032159,-303.6877053,0.0001097,2]
[336716921,1725063032181,-3834.18185265,0.0001097,2]
[336716927,1725063032229,-9028.27497612,0.0001097,2]
[336716929,1725063032238,-1102.26034968,0.00010971,2]
[336716935,1725063032283,-41.73965032,0.00010971,2]
[336716937,1725063032293,-254.32291453,0.00010971,2]
[336716939,1725063032304,-655.60712406,0.00010971,2]
[336716941,1725063032315,-2821.06996141,0.00010971,2]
[336716943,1725063032324,-62.14350202,0.00010971,2]
[336716945,1725063032335,-290.01549798,0.00010971,2]
[336716947,1725063032344,-256.47954658,0.00010971,2]
[336716949,1725063032355,-262.71588572,0.00010971,2]
[336716974,1725063038200,-2725.29220777,0.00010971,2]
[336716975,1725063038462,-2607.51235993,0.00010971,2]
[336716976,1725063038471,-13459.0,0.00010971,2]
[336716977,1725063038480,-164.025,0.00010972,2]
[336716978,1725063038491,-500.0,0.00010972,2]
[336716979,1725063038501,-500.0,0.00010972,2]
[336716980,1725063038511,-500.0,0.00010972,2]
[336716981,1725063038520,-556.44008535,0.00010972,2]
[336716982,1725063038531,-236.4999593,0.00010972,2]
[336716983,1725063038540,-500.0,0.00010972,2]
[336716984,1725063038550,-187.7605188,0.00010972,2]
[336716985,1725063038560,-806.0114186,0.00010972,2]
[336716986,1725063038572,-3958.4214648,0.00010972,2]
[336716987,1725063038581,-761.7810305,0.00010972,2]
[336716988,1725063038591,-5582.7672725,0.00010972,2]
[336716989,1725063038600,-150.0,0.00010972,2]
[336716990,1725063038612,-150.0,0.00010972,2]
[336716992,1725063038622,-447.0,0.00010972,2]
[336716994,1725063038632,-1545.0,0.00010972,2]
[336716996,1725063038641,-527.0,0.00010972,2]
[336716998,1725063038650,-7949.42,0.00010972,2]
[336717000,1725063038660,-179.99,0.00010972,2]
[336717001,1725063038669,-1769853.58351597,0.00010973,2]
[336717004,1725063038681,-12165.56982,0.00010973,2]
[336717088,1725063040454,-450.12063521,0.00010972,2]
[336717106,1725063043231,-266.362806,0.00010972,2]
[336717120,1725063046455,174.48931115,0.00010873,2]
[336717150,1725063054632,2284.0692,0.00010873,2]
[336717151,1725063075934,7500.0,0.00010873,2]
[336717152,1725063076582,1000.0,0.00010873,2]
[336717153,1725063091066,3701.44349438,0.00010899,2]
[336717154,1725063094198,2200.0,0.00024,120]
[336717155,1725063097479,736.5947,0.00010873,2]
[336717156,1725063115750,2852.9344,0.00010873,2]
[336717157,1725063118064,166.04,0.00010139,2]
[336717158,1725063131249,322.24094211,0.00010873,2]
[336717159,1725063137691,199.44,0.00010126,2]
[336717160,1725063143567,174.12842965,0.000109,2]
[336717161,1725063161384,251.1397622,0.00010873,2]
[336717162,1725063201467,2000.0,0.00023972,120]
[336717163,1725063202422,250.0,0.00010114,2]
[336717164,1725063216654,500.0,0.00010959,2]
[336717165,1725063225659,200.0,0.00010959,2]
[336717166,1725063263473,274.88,8.219e-05,2]
[336717167,1725063263667,274.88,0.00010482,2]
[336717168,1725063267728,322.24094209,0.00010873,2]
[336717169,1725063299310,167.42650812,0.00010873,2]
[336717170,1725063320436,462.35,0.00010086,2]
[336717171,1725063331458,279.2311076,0.000105,7]
[336717172,1725063346122,169.97,0.000101,2]
[336717173,1725063367062,252.58587452,0.00010873,2]
[336717174,1725063384373,260.98,0.00010959,2]
[336717175,1725063390748,1727.0,0.000109,2]
[336717176,1725063392668,322.24094209,0.00010873,2]
[336717177,1725063409832,38462.4749,0.00010873,2]
[336717178,1725063450187,737.54068,0.0001092,2]
[336717179,1725063493868,1000.0,0.000109,2]
[336717180,1725063510110,322.24094209,0.00010873,2]
[336717181,1725063516428,3686.59566307,0.00010899,2]
[336717182,1725063605740,166.04,0.00010176,2]
[336717183,1725063642232,200.19,0.00010071,2]
[336717184,1725063643995,174.12842965,0.000109,2]
[336717185,1725063702731,641.77728648,0.00010807,2]
[336717186,1725063749229,737.54069,0.0001091,2]
[336717187,1725063767750,250.0,0.00010081,2]
[336717188,1725063909389,1050.0,0.0001,2]
[336717189,1725063913670,247.39,8.219e-05,2]
[336717190,1725063913913,247.39,0.00010482,2]
[336717191,1725063933340,155.81,0.00010959,2]
[336717202,1725063941811,3317.93609679,0.00010899,2]
[336717204,1725064017862,9788.58555932,0.0001088,2]
[336717205,1725064018747,1000.0,0.00010213,2]
[336717210,1725064055448,737.54068,0.0001091,2]
[336717211,1725064055567,737.54069,0.0001095,2]
[336717212,1725064055605,737.54068,0.0001087,2]
[336717218,1725064146825,200.74,0.00010248,2]
[336717237,1725064232410,-462.57098659,0.00010962,2]
[336717249,1725064238385,-921.35837625,0.00010962,2]
[336717251,1725064238398,-1481.89383516,0.00010962,2]
[336717253,1725064238412,-3005.01689695,0.00010962,2]
[336717255,1725064238422,-154.92,0.00010963,2]
[336717256,1725064238434,-1200.0,0.00010965,2]
[336717257,1725064238446,-300.0,0.0001097,2]
[336717258,1725064238455,-5491.5021228,0.00010971,2]
[336717259,1725064238464,-4611.9804116,0.00010971,2]
[336717260,1725064238474,-150.0,0.00010971,2]
[336717261,1725064238484,-2000.0,0.00010972,2]
[336717262,1725064238494,-150.0,0.00010972,2]
[336717263,1725064238504,-810.0,0.00010972,2]
[336717264,1725064238513,-557.0,0.00010972,2]
[336717265,1725064238523,-930.0,0.00010972,2]
[336717266,1725064238534,-552.0,0.00010972,2]
[336717267,1725064238543,-1898.0,0.00010972,2]
[336717268,1725064238553,-248.0,0.00010972,2]
[336717269,1725064238563,-804.0,0.00010972,2]
[336717270,1725064238574,-1139.0,0.00010972,2]
[336717271,1725064238584,-3322.0,0.00010972,2]
[336717272,1725064238594,-1078.0,0.00010972,2]
[336717273,1725064238604,-1545.0,0.00010972,2]
[336717274,1725064238614,-289.0,0.00010972,2]
[336717275,1725064238624,-3731.0,0.00010972,2]
[336717276,1725064238633,-5852.0,0.00010972,2]
[336717277,1725064238642,-1259.0,0.00010972,2]
[336717278,1725064238651,-447.0,0.00010972,2]
[336717279,1725064238660,-1144.0,0.00010972,2]
[336717280,1725064238669,-623.0,0.00010972,2]
[336717281,1725064238678,-1000.0,0.00010973,2]
[336717282,1725064238687,-7153.83836088,0.00010973,2]
[336717283,1725064238698,-9553.154996,0.00010973,2]
[336717284,1725064238709,-9084.2900005,0.00010973,2]
[336717285,1725064238720,-13724.235,0.00010973,2]
[336717286,1725064238731,-1384.75,0.00010973,2]
[336717287,1725064238741,-5915.5,0.00010973,2]
[336717288,1725064238752,-363.97062925,0.00010973,2]
[336717289,1725064238783,-10340.0,0.00010973,2]
[336717290,1725064238795,-955.27057878,0.00010973,2]
[336717291,1725064238815,-19252.08751753,0.00010973,2]
[336717292,1725064238835,-491.77976376,0.00010973,2]
[336717300,1725064240373,-7312.89457521,0.00010972,2]
[336717301,1725064240427,-3274.40791948,0.00010972,2]
[336717302,1725064240439,-2871.69750531,0.00010972,2]
[336717303,1725064240449,-2501.89568273,0.00010973,2]
[336717304,1725064240484,-56633.72558783,0.00010973,2]
[336717305,1725064240706,-1043.60276726,0.00010973,2]
[336717333,1725064246309,-570.15,0.00010973,2]
[336717337,1725064282232,250.0,0.00010203,2]
[336717338,1725064322069,173.72819183,0.00010873,2]
[336717339,1725064369084,2986.14248712,0.00010899,2]
[336717341,1725064468858,222.65,8.236e-05,2]
[336717342,1725064469065,222.65,0.000105,2]
[336717343,1725064562494,200.0,0.00010193,2]
[336717344,1725064628898,200.74,0.00010126,2]
[336717345,1725064652244,202.0686996,0.00010873,2]
[336717346,1725064785176,793.0,0.00024,120]
[336717347,1725064794300,2687.52823839,0.00010899,2]
[336717348,1725064838202,250.0,0.00010187,2]
[336717349,1725064901350,169.97,0.00010435,2]
[336717352,1725065023100,200.38,8.421e-05,2]
[336717353,1725065023346,200.38,0.00010685,2]
[336717354,1725065045964,840.0,0.00010425,2]
[336717355,1725065110189,150.0,0.00010932,2]
[336717361,1725065219280,2418.77541456,0.00010899,2]
[336717362,1725065232110,855.0,0.00010959,2]
[336717363,1725065295480,359.85,0.00010474,2]
[336717383,1725065353395,250.0,0.00010349,2]
[336717385,1725065418201,1142.56,0.0001,2]
[336717402,1725065431492,-696.35,0.0001096,2]
[336717403,1725065431502,-300.0,0.00010962,2]
[336717404,1725065431512,-235.50132041,0.00010962,2]
[336717405,1725065431524,-186.30867959,0.00010962,2]
[336717406,1725065431533,-125.53304619,0.00010963,2]
[336717407,1725065431544,-296.27695381,0.00010963,2]
[336717408,1725065431554,-421.81,0.00010963,2]
[336717409,1725065431563,-115.27306451,0.00010963,2]
[336717410,1725065431575,-35.76693549,0.00010963,2]
[336717411,1725065431586,-151.04,0.00010963,2]
[336717412,1725065431595,-151.04,0.00010963,2]
[336717413,1725065431607,-151.04,0.00010963,2]
[336717414,1725065431617,-151.04,0.00010963,2]
[336717415,1725065431627,-57.01091435,0.00010963,2]
[336717416,1725065431643,-94.02908565,0.00010963,2]
[336717417,1725065431654,-151.04,0.00010963,2]
[336717418,1725065431664,-151.04,0.00010963,2]
[336717419,1725065431674,-151.04,0.00010963,2]
[336717420,1725065431683,-30.02493321,0.00010968,2]
[336717421,1725065431696,-371.6925449,0.00010968,2]
[336717422,1725065431707,-1000.5000036,0.00010968,2]
[336717423,1725065431719,-1714.72611778,0.00010968,2]
[336717424,1725065431744,-738.28457371,0.00010968,2]
[336717425,1725065431754,-1847.67384209,0.00010968,2]
[336717426,1725065431766,-458.03927154,0.00010968,2]
[336717427,1725065431787,-700.0,0.00010968,2]
[336717428,1725065431800,-315.29707946,0.00010968,2]
[336717429,1725065431812,-768.82318234,0.00010968,2]
[336717430,1725065431824,-332.75527609,0.00010968,2]
[336717431,1725065431853,-121.20840758,0.00010968,2]
[336717432,1725065431863,-150.0,0.00010971,2]
[336717433,1725065431872,-435.86890907,0.00010972,2]
[336717434,1725065431884,-187.13109093,0.00010972,2]
[336717435,1725065431893,-442.86805121,0.00010972,2]
[336717436,1725065431904,-1102.13194879,0.00010972,2]
[336717437,1725065431914,-1259.0,0.00010972,2]
[336717438,1725065431924,-447.0,0.00010972,2]
[336717439,1725065431935,-810.0,0.00010972,2]
[336717440,1725065431944,-930.0,0.00010972,2]
[336717441,1725065431954,-150.0,0.00010972,2]
[336717442,1725065431964,-557.0,0.00010972,2]
[336717443,1725065431973,-552.0,0.00010972,2]
[336717444,1725065431983,-1898.0,0.00010972,2]
[336717446,1725065431993,-804.0,0.00010972,2]
[336717447,1725065432003,-1139.0,0.00010972,2]
[336717448,1725065432013,-248.0,0.00010972,2]
[336717449,1725065432022,-3322.0,0.00010972,2]
[336717450,1725065432032,-289.0,0.00010972,2]
[336717451,1725065432042,-5852.0,0.00010972,2]
[336717452,1725065432055,-1144.0,0.00010972,2]
[336717453,1725065432065,-3731.0,0.00010972,2]
[336717454,1725065432074,-13459.0,0.00010972,2]
[336717455,1725065432084,-151.0,0.00010972,2]
[336717456,1725065432095,-11641.43683315,0.00010973,2]
[336717457,1725065432291,-935.99632994,0.00010973,2]
[336717458,1725065432303,-10923.01078965,0.00010973,2]
[336717470,1725065437643,-150.0,0.00010972,2]
[336717471,1725065437654,-163.0,0.00010972,2]
[336717473,1725065437663,-200.0,0.00010972,2]
[336717475,1725065437673,-164.31,0.00010972,2]
[336717476,1725065437683,-4022.72040044,0.00010973,2]
[336717477,1725065437751,-5008.0222405,0.00010973,2]
[336717478,1725065437863,-313.999999,0.00010973,2]
[336717479,1725065437875,-300.45999998,0.00010973,2]
[336717480,1725065437917,-1348.1342679,0.00010973,2]
[336717481,1725065437974,-300.0,0.00010973,2]
[336717482,1725065437985,-1275.15327242,0.00010973,2]
[336717630,1725065439858,-536.79925033,0.00010972,2]
[336717631,1725065439869,-364.6413554,0.00010972,2]
[336717632,1725065439880,-176.55939427,0.00010972,2]
[336717633,1725065439889,-241.81567256,0.00010973,2]
[336717653,1725065444593,-150.318,0.00010972,2]
[336717654,1725065444602,-5794.94202472,0.00010973,2]
[336717655,1725065444627,-268.1685,0.00010973,2]
[336717657,1725065445640,-1426.69041782,0.00010973,2]
[336718251,1725065539149,180.34,8.339e-05,2]
[336718252,1725065539278,180.34,0.00010603,2]
[336718253,1725065540441,328.0,0.00010257,2]
[336718254,1725065599235,173.72819182,0.00010873,2]
[336718255,1725065629505,155.61,0.00010959,2]
[336718257,1725065646037,2176.89787305,0.00010899,2]
[336718258,1725065734867,1050.0,0.0001,2]
[336718259,1725065855694,186.86,0.0001044,2]
[336718260,1725065882909,250.0,0.00010437,2]
[336718261,1725065937445,161.65495968,0.00010873,2]
[336718262,1725066043852,6370.0,0.0001085,2]
[336718263,1725066062494,-155.60044334,0.0001096,2]
[336718264,1725066063010,-155.60044334,0.0001096,2]
[336718265,1725066063492,-155.60044334,0.0001096,2]
[336718266,1725066063992,-150.0,0.0001096,2]
[336718267,1725066064442,-150.0,0.0001096,2]
[336718268,1725066068306,-43.19866998,0.0001096,2]
[336718269,1725066068327,-106.80133002,0.0001096,2]
[336718270,1725066069485,-150.0,0.0001096,2]
[336718271,1725066070337,-150.0,0.0001096,2]
[336718272,1725066071397,1959.20808579,0.00010899,2]
[336718273,1725066071496,-150.0,0.0001096,2]
[336718274,1725066073913,162.3,8.277e-05,2]
[336718275,1725066074143,162.3,0.00010541,2]
[336718276,1725066080582,737.6,0.00010195,2]
[336718277,1725066169566,466.8014,0.00010873,2]
[336718278,1725066321787,200.0,0.0001,2]
[336718280,1725066355222,186.88,0.00010157,2]
[336718282,1725066381627,500.0,8.22e-05,2]
[336718283,1725066381760,500.0,8.22e-05,2]
[336718284,1725066381909,500.0,8.22e-05,2]
[336718573,1725066458475,900.0,0.00010873,2]
[336718574,1725066496866,1763.28727722,0.00010899,2]
[336718575,1725066501399,250.0,0.00010131,2]
[336718577,1725066560815,153.75,8.219e-05,2]
[336718578,1725066561392,153.75,0.00010608,2]
[336718579,1725066598777,409.92,0.00010128,2]
[336718580,1725066631664,-0.19866998,0.0001096,2]
[336718581,1725066631674,-500.0,0.0001096,2]
[336718582,1725066631683,-419.82349314,0.0001096,2]
[336718583,1725066631694,-80.17650686,0.0001096,2]
[336718584,1725066631704,-500.0,0.0001096,2]
[336718585,1725066631714,-569.1041504,0.00010963,2]
[336718586,1725066631724,-151.05,0.00010963,2]
[336718587,1725066631735,-151.05,0.00010963,2]
[336718588,1725066631744,-151.05,0.00010963,2]
[336718589,1725066631754,-151.05,0.00010963,2]
[336718590,1725066631764,-650.8517068,0.00010968,2]
[336718591,1725066631773,-898.38118329,0.00010968,2]
[336718592,1725066631784,-150.0,0.0001097,2]
[336718593,1725066631793,-552.0,0.00010971,2]
[336718594,1725066631806,-912.83379384,0.00010971,2]
[336718595,1725066631819,-985.16620616,0.00010971,2]
[336718596,1725066631829,-804.0,0.00010971,2]
[336718597,1725066631839,-1139.0,0.00010971,2]
[336718598,1725066631850,-419.47615953,0.00010971,2]
[336718599,1725066631866,-2902.52384047,0.00010971,2]
[336718600,1725066631875,-248.0,0.00010971,2]
[336718601,1725066631885,-3427.04169807,0.00010971,2]
[336718602,1725066631922,-303.95830193,0.00010971,2]
[336718603,1725066631932,-289.0,0.00010971,2]
[336718604,1725066631942,-1144.0,0.00010971,2]
[336718606,1725066631951,-13459.0,0.00010971,2]
[336718607,1725066631960,-5852.0,0.00010971,2]
[336718609,1725066631970,-209.076,0.00010972,2]
[336718611,1725066631979,-155.692,0.00010972,2]
[336718612,1725066631989,-150.0,0.00010972,2]
[336718613,1725066631998,-252.866,0.00010972,2]
[336718614,1725066632008,-250.0,0.00010972,2]
[336718615,1725066632017,-261.715,0.00010972,2]
[336718616,1725066632026,-187.57,0.00010972,2]
[336718618,1725066632035,-447.0,0.00010972,2]
[336718619,1725066632044,-1259.0,0.00010972,2]
[336718620,1725066632054,-1545.0,0.00010972,2]
[336718621,1725066632064,-623.0,0.00010972,2]
[336718622,1725066632074,-930.0,0.00010972,2]
[336718623,1725066632083,-150.0,0.00010972,2]
[336718624,1725066632092,-16491.2777299,0.00010973,2]
[336718625,1725066632105,-396.64994585,0.00010973,2]
[336718626,1725066632117,-80941.74711823,0.00010973,2]
[336718638,1725066639916,-386.21255497,0.00010971,2]
[336718655,1725066644486,-652.49099563,0.00010971,2]
[336718656,1725066644526,-39.2964494,0.00010971,2]
[336718657,1725066644536,-336.0801255,0.00010973,2]
[336718659,1725066645893,-568.79,0.00010973,2]
[336718663,1725066687834,500.0,8.22e-05,2]
[336718666,1725066700100,500.0,8.22e-05,2]
[336718667,1725066703152,155.81,0.00010959,2]
[336718668,1725066799557,2000.0,0.00023996,120]
[336718669,1725066864422,173.72819182,0.00010873,2]
[336718670,1725066922189,1586.95854948,0.00010899,2]
[336718671,1725066950419,325.25,0.0001035,2]
[336718672,1725066998524,250.0,0.00010311,2]
[336718673,1725067097990,153.75,8.387e-05,2]
[336718674,1725067102299,672.06,0.00010287,2]
[336718675,1725067222680,161.65495967,0.00010873,2]
[336718676,1725067349370,1428.26269455,0.00010899,2]
[336718677,1725067413547,381.22097632,0.00024,120]
[336718678,1725067523677,250.0,0.00010167,2]
[336718679,1725067557277,1050.0,0.0001,2]
[336718681,1725067574596,174.75,0.00010238,2]
[336718717,1725067716541,153.75,8.363e-05,2]
[336718724,1725067770652,1000.0,0.00010266,2]
[336718725,1725067774788,1285.43642505,0.00010899,2]
[336718727,1725067808293,170.11,0.00010337,2]
[336718728,1725067824996,243.0357,0.00010873,2]
[336718729,1725067828124,5853.0,0.00010909,2]
[336718734,1725067832180,-500.0,0.0001096,2]
[336718735,1725067832190,-152.33,0.00010963,2]
[336718736,1725067832199,-75.1720417,0.00010963,2]
[336718737,1725067832212,-77.1579583,0.00010963,2]
[336718738,1725067832221,-150.0,0.00010971,2]
[336718739,1725067832230,-810.0,0.00010972,2]
[336718740,1725067832239,-930.0,0.00010972,2]
[336718741,1725067832250,-557.0,0.00010972,2]
[336718742,1725067832259,-1898.0,0.00010972,2]
[336718743,1725067832268,-552.0,0.00010972,2]
[336718744,1725067832278,-804.0,0.00010972,2]
[336718745,1725067832287,-248.0,0.00010972,2]
[336718746,1725067832296,-3322.0,0.00010972,2]
[336718747,1725067832305,-64.09233679,0.00010972,2]
[336718748,1725067832316,-1074.90766321,0.00010972,2]
[336718749,1725067832326,-1078.0,0.00010972,2]
[336718750,1725067832335,-1545.0,0.00010972,2]
[336718751,1725067832344,-1026.67331067,0.00010972,2]
[336718752,1725067832621,-2704.32668933,0.00010972,2]
[336718753,1725067832649,-289.668,0.00010972,2]
[336718754,1725067832658,-447.0,0.00010972,2]
[336718755,1725067832667,-7207.19576687,0.00010972,2]
[336718756,1725067832678,-4783.18391556,0.00010972,2]
[336718757,1725067832746,1259.0,0.00010909,2]
[336718758,1725067836911,1144.0,0.00010909,2]
[336718762,1725067838583,-569.5689955,0.00010972,2]
[336718763,1725067838595,-901.05132207,0.00010972,2]
[336718764,1725067838605,-104.11582794,0.00010973,2]
[336718773,1725067840250,-254.16163932,0.00010973,2]
[336718776,1725067841490,623.0,0.00010909,2]
[336718777,1725067843155,-5511.71358468,0.00010973,2]
[336718778,1725067843169,-2631.40179343,0.00010973,2]
[336718779,1725067843477,-310.54469105,0.00010973,2]
[336718785,1725067849027,759.95575774,0.000108,2]
[336718786,1725067862515,519.1227,0.00010873,2]
[336718788,1725067875237,500.0,8.22e-05,2]
[336718793,1725068013550,1871.13,0.0001,2]
[336718794,1725068100684,174.75,0.00010203,2]
[336718795,1725068119513,175.49317829,0.00010873,2]
[336718796,1725068200570,250.0,0.00010152,2]
[336718797,1725068200666,1179.60973673,0.00010899,2]
[336718798,1725068211617,153.75,8.248e-05,2]
[336718800,1725068269671,175.36,0.00010165,2]
[336718801,1725068281139,213.2763,0.00010873,2]
[336718803,1725068497816,162.53833171,0.00010873,2]
[336718804,1725068506406,1000.0,0.0001035,2]
[336718805,1725068626021,1061.64876303,0.00010899,2]
[336718806,1725068687392,295.15,0.00010304,2]
[336718807,1725068708546,250.0,0.00010239,2]
[336718808,1725068710068,270.0,0.00024,120]
[336718814,1725068764526,153.75,8.435e-05,2]
[336718817,1725068804110,155.61,0.00010959,2]
[336718891,1725069010481,200.0,0.00010411,2]
[336718892,1725069032139,-500.0,0.0001096,2]
[336718893,1725069032149,-152.33,0.00010963,2]
[336718894,1725069032158,-300.0,0.00010969,2]
[336718895,1725069032168,-757.4914362,0.0001097,2]
[336718896,1725069032177,-4321.5260484,0.0001097,2]
[336718897,1725069032187,-1322.9968644,0.0001097,2]
[336718899,1725069032297,-3826.578115,0.0001097,2]
[336718900,1725069032307,-2421.3483158,0.00010971,2]
[336718901,1725069032317,-150.0,0.00010971,2]
[336718902,1725069032327,-447.0,0.00010972,2]
[336718903,1725069032337,-1545.0,0.00010972,2]
[336718904,1725069032346,-623.0,0.00010972,2]
[336718905,1725069032356,-1259.0,0.00010972,2]
[336718906,1725069032366,-932.22,0.00010972,2]
[336718907,1725069032376,-554.644,0.00010972,2]
[336718908,1725069032385,-810.0,0.00010972,2]
[336718909,1725069032395,-552.0,0.00010972,2]
[336718910,1725069032406,-1898.0,0.00010972,2]
[336718911,1725069032416,-1139.0,0.00010972,2]
[336718912,1725069032426,-3322.0,0.00010972,2]
[336718913,1725069032437,-804.0,0.00010972,2]
[336718914,1725069032447,-248.562,0.00010972,2]
[336718915,1725069032458,-13461.0,0.00010972,2]
[336718916,1725069032468,-289.0,0.00010972,2]
[336718917,1725069032478,-3731.0,0.00010972,2]
[336718918,1725069032487,-1144.0,0.00010972,2]
[336718919,1725069032498,-5853.0,0.00010972,2]
[336718920,1725069032508,-150.0,0.00010972,2]
[336718921,1725069032517,-245672.54999092,0.00010973,2]
[336718927,1725069038371,-150.09,0.00010972,2]
[336718928,1725069038381,-150.0,0.00010972,2]